bitfinex-derivatives/quotes_ETHF0:USTF0_20260316
["timestamp","ask_amount","ask_price","bid_price","bid_amount"]
[1773648113120,2.96593581,2255.5,2254.5,0.00477017]
[1773648114520,2.96593581,2255.5,2254.5,5.59223588]
[1773648117917,2.91279178,2255.3,2254.5,0.00477017]
[1773648119320,7.35079178,2255.3,2254.5,0.00477017]
[1773648119517,2.91633302,2255.2,2254.5,0.00477017]
[1773648119716,2.91633302,2255.2,2254.5,5.59223588]
[1773648120022,2.91633302,2255.2,2254.5,0.00477017]
[1773648120318,7.35433302,2255.2,2253.4,5.80930825]
[1773648120522,2.82969492,2255.1,2253.4,5.80930825]
[1773648120722,2.82969492,2255.1,2253.7,5.58746571]
[1773648120922,2.83070349,2255.0,2253.7,5.58746571]
[1773648121421,2.83070349,2255.0,2253.7,5.59253574]
[1773648121619,7.26870349,2255.0,2253.7,5.59253574]
[1773648121819,2.80858971,2254.9,2253.7,5.59253574]
[1773648124630,2.80858971,2254.9,2253.9,5.58746571]
[1773648125130,3.42663959,2255.3,2253.9,5.58746571]
[1773648126222,3.42663959,2255.3,2254.1,5.58746571]
[1773648126624,3.42663959,2255.3,2254.3,5.58746571]
[1773648127131,3.3682628,2255.6,2254.5,5.58746571]
[1773648127531,3.3682628,2255.6,2254.7,5.58746571]
[1773648129333,3.39359654,2255.9,2254.7,5.58746571]
[1773648129834,3.39359654,2255.9,2254.9,5.58746571]
[1773648134032,0.00348681,2256.0,2255.1,5.58746571]
[1773648134532,3.61665223,2256.0,2255.1,5.58746571]
[1773648146239,3.25288761,2256.6,2255.1,5.58746571]
[1773648147245,3.25706795,2256.6,2255.1,5.58746571]
[1773648149243,3.01693529,2256.3,2255.1,5.58746571]
[1773648154040,3.23676438,2256.3,2255.1,5.58746571]
[1773648154739,3.01693529,2256.3,2255.1,5.58746571]
[1773648156138,0.22155,2256.4,2255.1,5.58746571]
[1773648156343,2.57299386,2256.3,2255.2,5.63410846]
[1773648157345,2.57299386,2256.3,2255.3,5.63410846]
[1773648157544,2.57299386,2256.3,2255.3,5.63896645]
[1773648157935,2.54233863,2256.6,2255.4,5.63410846]
[1773648158140,0.00418034,2256.6,2255.5,5.63410846]
[1773648158339,2.54233863,2256.6,2255.5,5.63410846]
[1773648158541,2.54233863,2256.6,2255.7,5.63410846]
[1773648158945,0.00418034,2256.6,2255.7,5.63410846]
[1773648164751,0.00418034,2256.6,2255.3,0.00485799]
[1773648165445,5.1115084,2256.6,2255.3,0.00485799]
[1773648165650,0.00418034,2256.6,2255.3,0.00485799]
[1773648166354,0.22154,2256.5,2255.3,0.00485799]
[1773648166756,2.00885882,2256.4,2255.4,5.63410846]
[1773648170858,0.22154,2256.5,2255.4,5.63410846]
[1773648171157,2.03899985,2256.6,2255.4,5.63410846]
[1773648171851,0.00418034,2256.6,2255.5,5.63410846]
[1773648172056,2.0266116,2256.6,2255.7,5.63410846]
[1773648173059,0.00418034,2256.6,2255.7,5.63410846]
[1773648173358,2.01599668,2256.6,2256.1,5.23327531]
[1773648174154,0.00418034,2256.6,2256.1,5.23327531]
[1773648175957,2.06192369,2256.8,2256.1,5.23327531]
[1773648176357,2.28531738,2257.0,2256.1,5.23327531]
[1773648176961,2.28962191,2257.0,2256.1,5.23327531]
[1773648178461,0.22152,2256.7,2256.1,5.23327531]
[1773648178675,2.03136278,2256.6,2256.0,5.20507851]
[1773648179164,2.26386539,2256.7,2256.0,5.20507851]
[1773648179358,0.22152,2256.7,2256.0,5.20507851]
[1773648179558,5.13598608,2256.9,2256.0,5.20507851]
[1773648179962,0.22769822,2257.0,2256.0,5.20507851]
[1773648180163,7.39493275,2257.0,2256.0,5.20507851]
[1773648180464,2.03056929,2256.8,2256.0,5.20507851]
[1773648181360,2.28062147,2256.9,2256.0,5.20507851]
[1773648182761,0.98220404,2256.7,2256.0,5.20507851]
[1773648183553,0.2215,2256.9,2256.3,5.2029091]
[1773648184563,0.00430453,2257.0,2256.3,5.2029091]
[1773648185459,3.67187138,2257.6,2256.3,5.2029091]
[1773648185460,0.22146,2257.4,2256.3,5.2029091]
[1773648186358,0.22694147,2257.4,2256.3,5.2029091]
[1773648187061,0.22694147,2257.4,2256.5,5.2029091]
[1773648187963,2.50890923,2258.1,2257.0,5.2029091]
[1773648188155,2.50890923,2257.5,2256.7,5.2029091]
[1773648188559,2.73038923,2257.2,2256.2,5.2029091]
[1773648188958,2.73515902,2257.2,2256.2,5.20605744]
[1773648190161,2.47346078,2257.1,2256.2,5.20605744]
[1773648191667,2.61708271,2256.9,2256.2,5.20605744]
[1773648194269,12.09744325,2256.8,2256.2,5.20605744]
[1773648194468,2.20744325,2256.7,2256.2,5.20605744]
[1773648194869,2.41443605,2256.9,2256.2,5.20605744]
[1773648195666,2.63329846,2256.9,2256.2,5.20605744]
[1773648196069,2.48736884,2256.4,2256.0,5.20507851]
[1773648196969,2.48736884,2256.4,2256.0,5.20971379]
[1773648197264,2.48736884,2256.4,2256.0,4.98403353]
[1773648197465,2.48736884,2256.4,2255.8,5.2029091]
[1773648197670,5.15300039,2256.1,2255.6,5.2029091]
[1773648198266,5.15300039,2256.1,2254.8,5.2029091]
[1773648198568,5.15300039,2256.1,2254.9,5.05011018]
[1773648198772,5.15300039,2256.1,2255.0,5.2029091]
[1773648200575,5.15300039,2255.9,2255.0,5.2029091]
[1773648201470,5.15300039,2255.7,2255.0,5.2029091]
[1773648202572,5.24560758,2255.5,2255.0,5.2029091]
[1773648202772,5.25091103,2255.5,2255.0,5.2029091]
[1773648203877,5.25091103,2255.5,2254.8,5.31263891]
[1773648204074,5.24560758,2255.3,2254.8,5.31263891]
[1773648204274,5.24560758,2255.3,2254.8,0.00313342]
[1773648204672,5.24560758,2255.2,2253.8,5.30950549]
[1773648204877,5.24560758,2255.1,2253.8,5.30950549]
[1773648205071,5.24560758,2255.1,2254.0,5.30950549]
[1773648205272,5.24560758,2254.9,2254.0,5.30950549]
[1773648205673,5.24560758,2254.9,2254.0,5.31511303]
[1773648206577,5.24560758,2254.7,2254.0,5.31511303]
[1773648206778,5.24560758,2254.6,2254.0,5.31511303]
[1773648207177,5.24560758,2254.6,2253.9,5.30950549]
[1773648208085,5.24560758,2254.5,2253.9,5.30950549]
[1773648208283,5.24560758,2254.5,2253.9,5.31275227]
[1773648211382,5.24560758,2254.7,2253.9,5.31275227]
[1773648211683,9.979,2254.6,2253.9,5.31275227]
[1773648211982,15.22460758,2254.6,2253.9,5.31275227]
[1773648213183,5.24560758,2254.6,2253.9,5.31275227]
[1773648213383,15.23360758,2254.6,2253.9,5.31275227]
[1773648213685,5.24560758,2254.5,2253.9,5.31275227]
[1773648214083,5.24560758,2254.5,2253.9,0.00324678]
[1773648215079,9.988,2254.6,2253.5,5.30950549]
[1773648215080,5.24560758,2254.0,2253.5,5.30950549]
[1773648215279,5.46744758,2253.5,2252.5,5.30950549]
[1773648215479,9.998,2253.5,2252.5,5.30950549]
[1773648215681,5.24560758,2253.7,2252.5,5.30950549]
[1773648215877,10.0,2253.6,2252.5,5.30950549]
[1773648216074,15.24974869,2253.6,2252.5,5.31359191]
[1773648216283,15.19874869,2253.6,2252.5,5.31359191]
[1773648216486,15.20074869,2253.6,2252.5,5.31359191]
[1773648216677,5.24560758,2253.5,2252.5,5.31359191]
[1773648219287,0.00414111,2253.6,2252.7,5.30950549]
[1773648222391,5.46739758,2254.1,2253.1,5.28120779]
[1773648222591,5.24560758,2254.5,2253.1,5.28120779]
[1773648223489,5.24993319,2254.5,2253.1,5.28120779]
[1773648223689,5.24560758,2254.3,2253.1,5.28120779]
[1773648224494,5.24560758,2254.3,2253.3,5.30950549]
[1773648225591,5.24560758,2255.2,2254.0,5.30950549]
[1773648225796,0.22166,2255.4,2254.3,5.30950549]
[1773648225797,5.24560758,2255.4,2254.3,5.30950549]
[1773648225990,5.24560758,2255.8,2254.6,5.30950549]
[1773648226492,5.24560758,2255.7,2254.6,5.30950549]
[1773648226793,5.24979888,2255.7,2254.6,5.31499351]
[1773648227995,4.438,2256.8,2254.9,5.30950549]
[1773648227996,5.24560758,2256.3,2254.9,5.30950549]
[1773648228194,5.24560758,2256.2,2254.9,5.30950549]
[1773648228397,5.24560758,2256.2,2255.1,5.30950549]
[1773648228987,5.24880051,2256.2,2255.1,5.30950549]
[1773648229301,5.24880051,2256.2,2255.2,5.30950549]
[1773648233396,5.41271803,2256.1,2255.2,5.30950549]
[1773648236596,0.00319293,2256.2,2255.2,5.30950549]
[1773648237200,5.63029898,2256.2,2255.2,5.30950549]
[1773648239708,5.62710605,2256.1,2255.2,5.30950549]
[1773648240006,5.62710605,2255.9,2255.0,5.36991293]
[1773648240307,5.63029898,2256.2,2255.2,5.36991293]
[1773648245107,5.62710605,2256.0,2254.7,5.4170187]
[1773648245503,0.00319293,2256.2,2254.7,5.4170187]
[1773648245504,5.62710605,2255.8,2254.8,5.4170187]
[1773648246509,5.62710605,2255.6,2254.8,5.4170187]
[1773648250103,5.62710605,2255.4,2254.6,5.4692167]
[1773648250811,5.62710605,2255.7,2254.6,5.4692167]
[1773648254805,5.62710605,2256.0,2254.8,5.49343718]
[1773648255214,5.62710605,2256.0,2255.0,5.49343718]
[1773648258313,5.84869605,2256.1,2255.2,5.42716966]
[1773648258813,5.62710605,2256.1,2255.2,5.42716966]
[1773648259513,5.62710605,2256.1,2255.0,6.93893604]
[1773648259719,5.62710605,2255.9,2255.0,5.41845713]
[1773648263118,5.62710605,2255.9,2255.0,5.39945713]
[1773648267423,5.19245225,2255.7,2254.8,5.33205686]
[1773648271727,5.19245225,2255.7,2254.7,6.93893604]
[1773648271931,5.19245225,2255.7,2254.7,12.20760118]
[1773648272227,5.19245225,2255.7,2254.8,5.26866514]
[1773648273127,5.19245225,2255.5,2254.6,5.26500305]
[1773648274924,5.19245225,2255.3,2254.6,5.26500305]
[1773648275221,5.19245225,2255.3,2254.6,0.00548802]
[1773648275625,5.19245225,2255.2,2254.6,5.3524057]
[1773648276429,5.19245225,2255.0,2254.0,5.37087481]
[1773648277429,5.19245225,2255.0,2254.0,5.375989]
[1773648279029,5.19245225,2254.9,2254.0,5.375989]
[1773648291643,5.19245225,2255.0,2254.0,5.374989]
[1773648291836,5.19245225,2255.0,2254.2,4.60637665]
[1773648292636,0.22168,2255.1,2254.2,4.60637665]
[1773648293043,5.45280608,2255.6,2254.2,4.60637665]
[1773648293341,5.45280608,2255.5,2254.3,4.12988243]
[1773648293644,5.45280608,2256.1,2254.6,4.12988243]
[1773648293844,5.67877079,2256.1,2254.6,4.12988243]
[1773648294942,5.42367532,2255.9,2254.6,4.12988243]
[1773648296447,5.42367532,2255.7,2254.6,4.12988243]
[1773648298951,5.42367532,2255.5,2254.6,4.12988243]
[1773648300254,5.42367532,2255.5,2254.2,11.13376888]
[1773648300548,5.42367532,2255.3,2254.2,4.19483284]
[1773648301849,5.42367532,2255.1,2254.2,4.19483284]
[1773648302054,5.42367532,2254.9,2254.2,4.19483284]
[1773648302245,5.42367532,2254.9,2254.0,4.09243259]
[1773648302645,5.42367532,2254.7,2254.0,4.09243259]
[1773648302851,5.42367532,2254.7,2254.0,0.00511419]
[1773648303156,5.42367532,2254.7,2254.0,3.68301903]
[1773648306351,5.42367532,2254.7,2254.1,5.11534469]
[1773648306558,0.22171,2254.8,2254.2,3.716126]
[1773648307153,5.64538532,2254.8,2254.2,3.716126]
[1773648308153,5.64538532,2254.8,2254.0,3.80092556]
[1773648308954,5.64538532,2254.8,2254.0,3.79152556]
[1773648309259,5.42367532,2254.8,2254.0,3.79152556]
[1773648309451,5.42367532,2255.3,2254.0,3.79152556]
[1773648309653,5.42367532,2255.3,2254.2,3.70133112]
[1773648310056,5.42367532,2255.3,2254.2,3.70655374]
[1773648315862,5.42367532,2255.7,2254.4,1.59423717]
[1773648316069,5.42367532,2255.7,2254.5,3.49922403]
[1773648320971,5.42367532,2255.7,2254.7,3.09718467]
[1773648322064,5.42367532,2255.7,2254.8,3.16430315]
[1773648323268,5.42367532,2255.7,2254.8,0.22171]
[1773648323664,7.01791249,2255.7,2254.8,0.22171]
[1773648323861,5.27800715,2255.6,2254.8,0.22171]
[1773648324370,5.27800715,2255.6,2254.8,3.10846555]
[1773648327870,5.27800715,2255.6,2254.8,0.22171]
[1773648328168,5.27800715,2255.6,2254.8,3.07109466]
[1773648329263,5.27800715,2255.6,2254.8,3.04059466]
[1773648332772,6.26115908,2255.6,2254.8,3.04059466]
[1773648337076,6.26115908,2255.6,2255.0,0.22169]
[1773648338380,6.26115908,2255.6,2255.0,2.9755468]
[1773648338577,5.27800715,2255.6,2255.0,2.9755468]
[1773648339481,6.26115908,2255.6,2255.0,0.22169]
[1773648341080,1.20425126,2256.0,2254.7,2.72651714]
[1773648341081,5.27800715,2255.3,2254.7,2.72651714]
[1773648341580,5.27800715,2255.3,2255.0,0.22169]
[1773648341877,5.27800715,2255.1,2254.5,6.93893604]
[1773648342178,5.27800715,2255.1,2254.5,0.22174]
[1773648342378,5.27800715,2254.9,2254.5,0.22174]
[1773648346189,5.27800715,2254.9,2254.2,6.94415866]
[1773648346389,5.27800715,2254.9,2254.2,10.28228546]
[1773648346688,5.27800715,2254.9,2254.5,0.22174]
[1773648347389,5.27800715,2255.6,2254.5,3.55000277]
[1773648348382,5.27800715,2255.6,2254.5,0.22174]
[1773648348588,5.27800715,2255.0,2254.5,0.22174]
[1773648349586,5.27800715,2255.6,2254.5,4.94318687]
[1773648353490,5.27800715,2255.6,2254.9,4.80791229]
[1773648353696,4.87662812,2256.0,2255.3,4.80787229]
[1773648353994,4.87982105,2256.2,2255.8,5.12017561]
[1773648354291,2.46246254,2256.2,2255.8,5.12493321]
[1773648354688,2.14762055,2256.2,2255.8,5.12493321]
[1773648354888,5.19434887,2257.0,2255.8,5.12493321]
[1773648355095,5.19943546,2257.0,2255.8,5.12493321]
[1773648359502,5.19943546,2257.0,2255.8,0.2263676]
[1773648360506,5.19943546,2257.0,2255.8,5.36024779]
[1773648361204,5.19943546,2257.0,2255.8,0.2263676]
[1773648361800,5.19943546,2257.0,2255.8,5.36024779]
[1773648364206,5.19434887,2256.8,2255.8,5.36024779]
[1773648366005,5.19434887,2256.8,2256.2,5.35544019]
[1773648366807,0.00508659,2257.0,2256.8,5.13388019]
[1773648367106,5.19943546,2257.0,2256.7,5.35540019]
[1773648368209,5.19943546,2257.0,2256.7,0.22152]
[1773648370915,5.19943546,2257.0,2256.7,0.09090965]
[1773648372807,5.19434887,2257.4,2256.7,5.22478984]
[1773648373908,5.19876275,2257.4,2256.7,5.22478984]
[1773648374412,5.19876275,2257.4,2256.0,5.13388019]
[1773648374805,5.19876275,2257.4,2256.2,0.22157]
[1773648375003,5.19876275,2257.4,2256.2,5.35545019]
[1773648375804,5.19876275,2257.4,2256.7,5.35540019]
[1773648376714,5.19876275,2257.4,2256.7,0.22152]
[1773648380413,5.19876275,2257.4,2256.7,5.35540019]
[1773648380611,5.19434887,2257.5,2257.2,5.13388019]
[1773648380816,5.19434887,2258.4,2257.2,5.13388019]
[1773648381514,5.19434887,2258.3,2257.3,5.35535019]
[1773648381714,5.19434887,2258.3,2257.3,5.33765019]
[1773648383406,5.19434887,2258.3,2257.3,0.20377]
[1773648384411,5.19434887,2258.3,2257.2,5.06992784]
[1773648384412,5.19434887,2258.3,2256.7,5.06992784]
[1773648384721,5.27680123,2257.9,2256.7,5.29144784]
[1773648388324,5.27680123,2257.9,2256.7,0.22152]
[1773648389822,5.27680123,2257.9,2256.7,5.29144784]
[1773648390723,5.49729389,2257.9,2256.7,5.29144784]
[1773648393624,5.27680123,2257.9,2257.2,0.22147]
[1773648393927,5.27680123,2257.9,2257.3,5.06992784]
[1773648394118,5.27680123,2257.9,2256.9,5.06992784]
[1773648394321,5.27680123,2257.9,2256.7,5.29144784]
[1773648396027,5.27680123,2257.9,2255.9,9.2549162]
[1773648396028,5.27680123,2257.9,2257.2,0.22147]
[1773648397032,5.27680123,2257.9,2256.7,5.06992784]
[1773648398626,5.27680123,2257.9,2256.8,5.29143784]
[1773648398830,5.27680123,2257.7,2256.8,5.29143784]
[1773648400227,5.27680123,2257.7,2256.8,0.22151]
[1773648400931,5.27680123,2257.7,2256.4,5.06992784]
[1773648400932,5.27680123,2257.6,2256.4,5.06992784]
[1773648401131,5.27680123,2257.5,2256.4,5.06992784]
[1773648402232,5.27680123,2257.4,2256.6,5.06992784]
[1773648402433,5.27680123,2257.4,2256.5,5.29146784]
[1773648403324,5.27680123,2257.4,2256.5,0.22154]
[1773648403925,5.27680123,2257.4,2256.5,0.21134]
[1773648405233,5.27680123,2257.4,2256.5,5.28126784]
[1773648407532,5.4988265,2257.4,2256.5,5.28126784]
[1773648409036,5.27680123,2257.8,2256.5,5.06992784]
[1773648410231,5.27680123,2257.7,2256.5,5.29146784]
[1773648413436,4.95778636,2257.5,2256.4,4.69667125]
[1773648413636,4.95778636,2257.3,2256.0,4.69667125]
[1773648414840,4.95778636,2257.3,2256.2,5.00459791]
[1773648419436,4.95778636,2257.3,2256.3,0.22156]
[1773648419642,4.95778636,2257.3,2256.4,5.00459791]
[1773648420346,5.18433969,2257.3,2256.4,5.00459791]
[1773648421346,4.94935709,2257.1,2256.6,5.00459791]
[1773648421948,4.94935709,2257.2,2256.6,5.00459791]
[1773648423541,4.94935709,2257.2,2256.5,0.22154]
[1773648424745,4.94935709,2257.2,2256.5,5.22613791]
[1773648424951,4.94935709,2257.0,2256.5,5.22613791]
[1773648425143,14.70235709,2257.2,2256.5,5.22613791]
[1773648425346,14.70235709,2257.2,2256.5,5.22283791]
[1773648425545,4.94935709,2257.1,2256.5,5.22283791]
[1773648425748,4.94935709,2257.5,2256.5,5.22283791]
[1773648427454,3.66874358,2258.3,2256.5,5.00459791]
[1773648427755,4.94935709,2258.1,2257.5,5.00459791]
[1773648427955,9.739,2258.7,2257.5,5.01005567]
[1773648428151,4.94935709,2258.3,2257.5,5.01005567]
[1773648429155,4.94935709,2258.5,2257.7,5.00459791]
[1773648430459,4.95320183,2258.4,2257.9,5.00459791]
[1773648430661,4.95320183,2258.4,2257.8,0.22142]
[1773648430855,4.95320183,2258.4,2257.8,5.22601791]
[1773648431357,4.95320183,2258.4,2257.8,0.22142]
[1773648431558,4.94935709,2258.0,2257.3,5.00459791]
[1773648431960,4.94935709,2258.3,2257.3,5.00459791]
[1773648432162,4.94935709,2258.3,2257.5,5.00459791]
[1773648432563,4.94935709,2258.3,2257.5,5.00984351]
[1773648434458,4.94935709,2258.3,2257.5,0.0052456]
[1773648434661,4.94935709,2258.3,2257.6,5.00459791]
[1773648435266,4.94935709,2258.3,2257.8,5.00459791]
[1773648435970,0.00384474,2258.4,2258.0,5.00459791]
[1773648439472,4.94935709,2259.4,2258.2,5.00459791]
[1773648439767,4.94935709,2259.4,2258.3,5.22596791]
[1773648440473,4.95402835,2259.4,2258.3,5.22596791]
[1773648440664,4.95402835,2259.4,2258.1,5.00459791]
[1773648440964,4.94935709,2259.3,2258.1,5.00459791]
[1773648441166,4.94935709,2259.1,2257.7,0.22142]
[1773648441369,4.94935709,2259.1,2257.8,5.00459791]
[1773648442173,4.94935709,2259.1,2257.5,0.0052456]
[1773648442174,4.89612072,2258.5,2257.5,4.69748045]
[1773648443477,4.89612072,2258.5,2257.5,4.69308045]
[1773648449379,4.89612072,2258.5,2257.6,4.91367485]
[1773648449882,1.59049119,2259.1,2257.6,4.91367485]
[1773648450082,4.89612072,2259.0,2257.6,4.91367485]
[1773648456786,4.89612072,2259.0,2257.7,4.69223485]
[1773648457180,1.59049119,2258.8,2257.7,4.69223485]
[1773648457385,4.89612072,2258.3,2257.5,4.91452045]
[1773648459689,8.10748719,2259.0,2257.5,4.91452045]
[1773648459690,4.89612072,2258.9,2258.1,4.69223485]
[1773648460081,4.89612072,2259.3,2258.3,4.69223485]
[1773648462391,4.89612072,2259.3,2258.5,4.69223485]
[1773648462692,0.00467126,2259.4,2258.7,4.69223485]
[1773648462885,4.90079198,2259.4,2258.7,4.69223485]
[1773648464891,4.90079198,2259.4,2258.4,4.69223485]
[1773648466285,4.90079198,2259.4,2258.1,4.69223485]
[1773648469796,4.89612072,2259.3,2258.3,4.69223485]
[1773648470288,4.89612072,2259.3,2258.5,4.69223485]
[1773648470496,4.89612072,2259.3,2258.7,4.69223485]
[1773648471289,4.89612072,2259.3,2258.1,0.22139]
[1773648471497,4.89612072,2259.3,2258.2,4.69223485]
[1773648479096,4.45524624,2259.4,2258.4,4.45523766]
[1773648483809,4.45524624,2259.4,2258.2,4.45523766]
[1773648485818,4.45057498,2259.2,2258.0,11.36976137]
[1773648486114,4.45057498,2259.2,2258.0,4.45523766]
[1773648486816,4.45057498,2259.2,2258.2,4.45523766]
[1773648489016,4.45057498,2259.0,2257.8,4.45523766]
[1773648489219,4.45057498,2258.8,2257.8,4.45523766]
[1773648492121,4.45057498,2258.8,2257.6,4.45523766]
[1773648495318,4.45057498,2258.8,2257.8,4.45523766]
[1773648497016,4.45057498,2259.1,2258.0,4.45523766]
[1773648498126,4.45057498,2259.1,2258.2,4.45523766]
[1773648502025,4.45057498,2259.1,2257.9,4.45523766]
[1773648508931,4.21966385,2258.9,2257.5,7.13682931]
[1773648509131,4.21966385,2258.7,2257.6,4.21011385]
[1773648509833,4.21966385,2258.7,2257.5,4.43241945]
[1773648510032,4.21966385,2258.7,2257.5,4.21095945]
[1773648510235,4.21966385,2258.6,2257.5,4.21095945]
[1773648512430,4.21966385,2258.4,2257.5,0.0008456]
[1773648513332,4.21966385,2258.4,2257.5,4.21095945]
[1773648514027,4.21966385,2258.2,2257.5,0.0008456]
[1773648516136,4.21966385,2258.2,2257.2,4.21011385]
[1773648516337,4.21966385,2258.0,2257.2,4.21011385]
[1773648517137,4.21966385,2258.0,2257.2,4.2156924]
[1773648520236,4.21966385,2258.2,2257.2,4.2156924]
[1773648520629,4.21966385,2258.2,2257.4,4.21011385]
[1773648526145,4.21966385,2258.8,2257.6,4.21011385]
[1773648526938,4.21966385,2258.6,2257.6,4.21011385]
[1773648530841,4.21966385,2258.6,2257.3,4.21011385]
[1773648531146,4.21966385,2258.4,2257.3,4.21011385]
[1773648536038,4.21966385,2258.4,2257.5,4.26660301]
[1773648542650,4.58076108,2258.5,2257.5,4.26660301]
[1773648543849,4.35508076,2258.5,2257.7,4.26660301]
[1773648551452,4.35508076,2258.5,2257.3,4.26660301]
[1773648552847,4.35508076,2258.2,2257.3,5.24753467]
[1773648553359,0.98093166,2258.1,2257.3,5.24753467]
[1773648553553,4.35508076,2258.0,2257.3,5.24753467]
[1773648555159,4.35508076,2258.0,2257.3,4.26660301]
[1773648556256,5.33601242,2258.0,2257.2,0.00557855]
[1773648556461,4.35508076,2257.7,2257.2,4.27218156]
[1773648556760,4.35902736,2257.7,2257.2,4.27218156]
[1773648557354,0.0039466,2257.7,2257.2,4.27218156]
[1773648557760,0.0039466,2257.7,2257.2,5.25311322]
[1773648559663,4.35508076,2257.9,2257.2,5.25311322]
[1773648560666,4.35837133,2257.9,2257.2,5.25311322]
[1773648561059,0.00329057,2257.9,2257.2,5.25311322]
[1773648561663,4.35837133,2257.9,2257.2,5.25311322]
[1773648563164,0.98093166,2257.8,2257.2,3.99282201]
[1773648563468,3.93278094,2257.7,2257.2,3.99282201]
[1773648565378,3.93607151,2257.9,2257.2,3.99282201]
[1773648569277,3.93278094,2257.7,2257.2,3.99282201]
[1773648570068,3.93278094,2257.7,2257.2,0.00557855]
[1773648573577,3.93278094,2257.7,2257.2,3.99282201]
[1773648576573,3.93278094,2257.7,2257.0,3.98724346]
[1773648576774,3.93278094,2257.7,2257.1,4.96817512]
[1773648577577,3.93278094,2257.7,2257.1,3.98724346]
[1773648577777,3.93278094,2257.7,2257.1,3.99058794]
[1773648582081,3.93607151,2257.9,2257.4,3.98724346]
[1773648583679,0.00329057,2257.9,2257.4,3.98724346]
[1773648584283,3.93607151,2257.9,2257.4,3.98724346]
[1773648588086,3.93278094,2258.3,2257.8,3.98724346]
[1773648589184,3.93793397,2258.3,2257.8,3.98724346]
[1773648594886,3.84651759,2258.5,2257.8,4.96817512]
[1773648595885,3.85085775,2258.5,2257.8,4.96817512]
[1773648596387,4.06969793,2258.5,2257.8,4.96817512]
[1773648598092,3.85085775,2258.5,2258.1,3.81089126]
[1773648598385,3.85085775,2258.5,2257.3,10.72541497]
[1773648598586,3.84651759,2258.3,2257.6,3.81089126]
[1773648598890,3.84651759,2258.3,2257.8,3.81089126]
[1773648599086,3.84651759,2258.3,2257.8,3.64146438]
[1773648600993,3.84651759,2258.3,2257.2,3.81089126]
[1773648601193,3.84651759,2257.9,2257.2,3.81089126]
[1773648605495,0.98093166,2258.0,2257.2,3.81089126]
[1773648605798,3.84651759,2258.1,2257.6,3.81089126]
[1773648609502,3.84651759,2258.1,2257.2,3.81089126]
[1773648609704,3.84651759,2258.1,2257.1,3.81423574]
[1773648612008,1.1973673,2258.2,2257.1,3.81423574]
[1773648612009,3.85085775,2258.5,2257.6,3.81089126]
[1773648630213,3.85085775,2258.5,2257.5,0.22147]
[1773648630214,3.39709151,2258.3,2257.4,3.39073928]
[1773648634719,3.39709151,2258.2,2257.2,3.39073928]
[1773648635618,0.98099979,2258.3,2257.2,3.39073928]
[1773648635619,3.39709151,2257.9,2257.2,3.39073928]
[1773648638126,3.39709151,2257.9,2257.1,3.39408376]
[1773648639126,3.39709151,2257.8,2257.1,3.39408376]
[1773648639328,3.39709151,2257.8,2257.1,0.00334448]
[1773648639623,3.39709151,2257.6,2257.1,0.00334448]
[1773648640224,3.39709151,2257.6,2257.1,3.39408376]
[1773648640924,3.39709151,2257.6,2256.9,3.39073928]
[1773648641827,3.39709151,2257.6,2256.9,3.39402981]
[1773648642921,3.39709151,2257.5,2256.9,3.39402981]
[1773648643323,3.39709151,2257.5,2256.9,0.00329053]
[1773648643522,3.39709151,2257.5,2256.7,3.39073928]
[1773648644428,3.39709151,2257.5,2256.7,3.39394294]
[1773648646724,3.39709151,2257.8,2256.8,3.39073928]
[1773648646925,3.39709151,2257.8,2257.0,3.39073928]
[1773648650726,3.39709151,2258.0,2257.2,3.39073928]
[1773648651428,3.39709151,2258.0,2257.4,3.39073928]
[1773648652027,3.39709151,2258.0,2257.3,3.61222928]
[1773648654035,3.39709151,2258.0,2256.8,0.98099979]
[1773648654036,3.48003015,2257.9,2257.1,3.34399981]
[1773648654430,3.48003015,2257.9,2256.8,1.20252979]
[1773648654431,3.48003015,2257.9,2257.3,3.19990785]
[1773648657333,3.48003015,2257.9,2257.2,3.42140785]
[1773648665634,3.25890566,2258.1,2257.2,3.42140785]
[1773648670739,3.25890566,2257.8,2257.2,3.42140785]
[1773648674444,3.25890566,2257.7,2257.2,3.42140785]
[1773648675850,3.25890566,2257.5,2257.2,0.2215]
[1773648676049,2.53901748,2257.5,2257.2,0.2215]
[1773648676748,2.53901748,2257.5,2257.1,3.19990785]
[1773648679050,2.53901748,2257.5,2256.9,3.19990785]
[1773648679250,3.25890566,2257.3,2256.9,3.19990785]
[1773648680442,3.25890566,2257.8,2257.1,3.19990785]
[1773648680756,3.25890566,2258.1,2257.4,3.19990785]
[1773648683250,3.10509711,2257.9,2257.4,3.19990785]
[1773648685550,4.08632053,2257.6,2257.2,3.28918085]
[1773648685744,3.10509711,2257.5,2257.2,3.28918085]
[1773648685951,3.10509711,2257.5,2256.8,3.28918085]
[1773648686452,4.08632053,2257.6,2256.8,3.28918085]
[1773648686656,3.10509711,2257.6,2256.8,3.28918085]
[1773648687048,3.10509711,2257.6,2256.9,0.22153]
[1773648687357,3.10509711,2257.6,2257.0,3.28918085]
[1773648688355,3.10509711,2257.9,2257.2,3.28918085]
[1773648688750,0.98122342,2258.0,2257.4,3.28918085]
[1773648688955,4.08632053,2258.0,2257.4,3.28918085]
[1773648689157,3.10509711,2257.9,2257.4,3.28918085]
[1773648689757,3.10509711,2257.9,2257.5,3.28918085]
[1773648691562,0.00434016,2258.5,2257.5,4.27040427]
[1773648691857,0.00434016,2258.5,2257.7,0.98122342]
[1773648692057,0.00434016,2258.5,2258.0,3.28918085]
[1773648692263,3.10509711,2258.8,2258.2,3.28918085]
[1773648692461,3.10509711,2258.9,2258.4,3.28918085]
[1773648693352,3.1093488,2258.9,2258.4,3.2934071]
[1773648693559,3.10509711,2259.2,2258.6,3.28918085]
[1773648694558,3.11037856,2259.2,2258.6,3.28918085]
[1773648696166,0.00528145,2259.2,2258.6,3.28918085]
[1773648697266,3.11037856,2259.2,2258.6,3.28918085]
[1773648697572,0.00528145,2259.2,2258.6,3.28918085]
[1773648698768,3.11037856,2259.2,2258.8,3.28918085]
[1773648699265,3.10509711,2259.4,2258.8,3.28918085]
[1773648699466,3.10509711,2259.0,2258.6,3.28918085]
[1773648700266,3.10933844,2259.0,2258.6,3.28918085]
[1773648701167,0.00424133,2259.0,2258.6,3.28918085]
[1773648701381,3.10933844,2259.0,2258.7,3.28918085]
[1773648702066,0.62862573,2259.7,2258.7,3.28918085]
[1773648702067,3.10509711,2259.4,2258.7,3.28918085]
[1773648703173,3.10906241,2259.4,2258.7,3.28918085]
[1773648706277,0.0039653,2259.4,2258.9,3.28918085]
[1773648706478,3.10906241,2259.4,2258.9,3.28918085]
[1773648708579,3.10906241,2259.4,2258.6,0.98122342]
[1773648708774,3.10509711,2259.3,2258.7,3.28918085]
[1773648712880,3.12871856,2259.4,2258.9,3.06105345]
[1773648713079,3.12475326,2259.2,2258.5,3.06105345]
[1773648720281,3.08275419,2259.1,2258.5,3.06105345]
[1773648720685,3.08275419,2258.7,2258.4,3.23998681]
[1773648721283,2.36325169,2258.7,2258.4,3.23998681]
[1773648721890,3.34447511,2258.7,2258.1,3.23576056]
[1773648722891,3.34447511,2258.7,2258.1,3.24040571]